fUSD/lending_fUSD_20251123
["ID","MTS","AMOUNT","RATE_DAILY","PERIOD"]
[394693443,1763903297832,-46.20980705,0.00017,2]
[394693444,1763903297916,-10000.01,0.00017,2]
[394693445,1763903297944,-376.89070444,0.00017,2]
[394693446,1763903297959,-200.0,0.00017,2]
[394693447,1763903297973,-200.0,0.00017,2]
[394693448,1763903297988,-1009.33610382,0.00017,2]
[394693449,1763903298002,-803.5781585,0.00017,2]
[394693450,1763903298016,-151.0,0.00017,2]
[394693451,1763903298031,-151.0,0.00017,2]
[394693452,1763903298046,-151.0,0.00017,2]
[394693453,1763903298068,-151.0,0.00017,2]
[394693454,1763903298086,-151.0,0.00017,2]
[394693455,1763903298101,-151.0,0.00017,2]
[394693456,1763903298116,-151.0,0.00017,2]
[394693457,1763903298131,-151.0,0.00017,2]
[394693458,1763903298145,-151.0,0.00017,2]
[394693459,1763903298161,-151.0,0.00017,2]
[394693460,1763903298178,-151.0,0.00017,2]
[394693461,1763903298198,-151.0,0.00017,2]
[394693462,1763903298284,-151.0,0.00017,2]
[394693463,1763903298396,-350.02566,0.00017,2]
[394693464,1763903298457,-194.34874648,0.00017,2]
[394693465,1763903298692,-10000.01,0.00017,2]
[394693466,1763903298707,-10000.01,0.00017,2]
[394693467,1763903351887,202.23,0.00015,4]
[394693468,1763903402161,167.84,0.00013326,2]
[394693472,1763903432277,-300.0,0.00016654,2]
[394693473,1763903432287,-152.11662572,0.00016654,2]
[394693474,1763903432298,-440.56810984,0.00016654,2]
[394693475,1763903432310,-510.0,0.00016654,2]
[394693476,1763903432437,-97.31526444,0.00016654,2]
[394693477,1763903432447,-232.90315359,0.00016654,2]
[394693486,1763903438303,-163.86,0.00016645,2]
[394693487,1763903438313,-71.09684641,0.00016654,2]
[394693488,1763903438323,-500.0,0.00016654,2]
[394693489,1763903438333,-156.18879724,0.00016654,2]
[394693490,1763903438342,-500.0,0.00016654,2]
[394693491,1763903438351,-500.0,0.00016654,2]
[394693492,1763903438360,-500.0,0.00016654,2]
[394693493,1763903438370,-64.95435635,0.00016654,2]
[394693505,1763903440467,-435.04564365,0.00016654,2]
[394693506,1763903440477,-500.0,0.00016654,2]
[394693507,1763903440486,-66831.86913998,0.00016655,2]
[394693508,1763903440516,-435.346986,0.00016655,2]
[394693514,1763903444059,-867.32,0.00016655,2]
[394693515,1763903444071,-20786.14111609,0.00016655,2]
[394693516,1763903444706,-13323.53917718,0.00016655,2]
[394693517,1763903444718,-627.4490785,0.00016655,2]
[394693519,1763903446371,-555.70454957,0.00016655,2]
[394693520,1763903446428,-3142.73262636,0.00016655,2]
[394693521,1763903446584,-33.65020978,0.00016655,2]
[394693522,1763903446596,-258.747484,0.00016655,2]
[394693530,1763903768438,-2572.22,0.00015787,2]
[394693531,1763903768469,-339.54589125,0.000159,2]
[394693532,1763903768500,-195.0,0.00015939,2]
[394693533,1763903768532,-168.0,0.00016091,2]
[394693534,1763903768565,-168.0,0.00016152,2]
[394693535,1763903768595,-339.54589125,0.00016199,2]
[394693536,1763903768626,-168.0,0.0001622,2]
[394693537,1763903768807,-168.0,0.00016337,2]
[394693538,1763903768841,-300.0,0.00016553,2]
[394693539,1763903768876,-163.0,0.00016554,2]
[394693540,1763903768912,-300.0,0.00016554,2]
[394693541,1763903769341,-300.0,0.00016554,2]
[394693542,1763903769371,-1200.0,0.00016554,2]
[394693543,1763903769401,-300.0,0.00016554,2]
[394693544,1763903769432,-1087.2928,0.00016555,2]
[394693545,1763903769570,-4225.4244,0.00016555,2]
[394693546,1763903769599,-549.1612,0.00016555,2]
[394693547,1763903769649,-450.8388,0.00016555,2]
[394693548,1763903769677,-1000.0,0.00016555,2]
[394693549,1763903769705,-1003.375,0.00016555,2]
[394693550,1763903769733,-2500.0,0.00016555,2]
[394693551,1763903769803,-300.0,0.00016557,2]
[394693552,1763903770164,-947.274635,0.00016558,2]
[394693553,1763903770186,-1003.375,0.00016558,2]
[394693554,1763903770205,-2500.0,0.00016558,2]
[394693555,1763903770220,-91.5824,0.00016558,2]
[394693556,1763903770256,-4192.05227693,0.00016558,2]
[394693557,1763903770952,-1615.90544614,0.00016558,2]
[394693558,1763903770961,-3892.05227693,0.00016558,2]
[394693559,1763903771004,-2918.56586224,0.00016558,2]
[394693560,1763903771029,-4162.87827552,0.00016558,2]
[394693561,1763903771038,-523.76945673,0.00016558,2]
[394693562,1763903771047,-233.72589511,0.00016558,2]
[394693563,1763903771056,-339.54589125,0.00016558,2]
[394693564,1763903771065,-151.0,0.00016652,2]
[394693565,1763903771074,-151.0,0.00016652,2]
[394693566,1763903771083,-151.0,0.00016652,2]
[394693567,1763903771095,-453.88449081,0.00016654,2]
[394693568,1763903771104,-914.64012834,0.00016655,2]
[394693569,1763903771151,-10000.01,0.00016655,2]
[394693570,1763903771187,-10000.01,0.00016655,2]
[394693571,1763903771220,-5807.95772307,0.00016655,2]
[394693572,1763903771341,-7081.44413776,0.00016655,2]
[394693573,1763903771394,-10000.01,0.00016655,2]
[394693574,1763903774316,-10000.01,0.00016655,2]
[394693575,1763903774450,-10000.01,0.00016655,2]
[394693576,1763903775097,-10000.01,0.00016655,2]
[394693583,1763904138235,157.81,0.00019178,30]
[394693585,1763904235967,-166.66,0.00014981,2]
[394693586,1763904235997,-391.47172431,0.00014991,2]
[394693587,1763904236030,-832.0361346,0.00015,2]
[394693588,1763904236066,-166.66,0.00015296,2]
[394693589,1763904236096,-166.66,0.00015612,2]
[394693590,1763904236125,-250.0,0.0001578,2]
[394693591,1763904236155,-166.66,0.00015927,2]
[394693592,1763904236182,-180.27654404,0.00015934,2]
[394693593,1763904236210,-200.0,0.00015934,2]
[394693594,1763904236239,-166.66,0.00016243,2]
[394693595,1763904236446,-191.32,0.00016381,2]
[394693596,1763904236479,-300.0,0.00016479,2]
[394693597,1763904236507,-318.25107326,0.00016479,2]
[394693598,1763904236535,-300.73037782,0.00016479,2]
[394693599,1763904236564,-341.03,0.000165,2]
[394693600,1763904236594,-168.0,0.0001655,2]
[394693601,1763904236623,-300.0,0.00016554,2]
[394693602,1763904236693,-2500.0,0.00016555,2]
[394693603,1763904236721,-1600.4253,0.00016555,2]
[394693604,1763904236750,-300.0,0.00016557,2]
[394693605,1763904237257,-487.17829194,0.00016558,2]
[394693606,1763904237271,-300.0,0.00016558,2]
[394693607,1763904237297,-330.01887581,0.000159,2]
[394693608,1763904237306,-869.14052419,0.00016558,2]
[394693609,1763904237320,-10000.01,0.00016558,2]
[394693610,1763904237353,-4769.28973851,0.00016558,2]
[394693611,1763904237382,-166.66,0.00016558,2]
[394693612,1763904237438,-1200.0,0.00016636,2]
[394693613,1763904237447,-150.0,0.00016636,2]
[394693614,1763904237457,-3332.276,0.00016636,2]
[394693615,1763904237466,-206.87,0.00016636,2]
[394693616,1763904237475,-174.91426149,0.00016637,2]
[394693617,1763904237522,-298.77748826,0.00016637,2]
[394693618,1763904237562,-9402.45502348,0.00016637,2]
[394693619,1763904237572,-235.72832902,0.00016637,2]
[394693620,1763904237581,-63.04915924,0.00016652,2]
[394693621,1763904237611,-87.95084076,0.00016652,2]
[394693622,1763904237620,-151.0,0.00016652,2]
[394693623,1763904237629,-151.0,0.00016652,2]
[394693624,1763904237638,-578.20924308,0.00016654,2]
[394693625,1763904237647,-500.0,0.00016654,2]
[394693626,1763904237657,-500.0,0.00016654,2]
[394693627,1763904237666,-500.0,0.00016654,2]
[394693628,1763904237675,-500.0,0.00016654,2]
[394693629,1763904237685,-288.99780866,0.00016654,2]
[394693630,1763904237694,-500.0,0.00016654,2]
[394693631,1763904237703,-500.0,0.00016654,2]
[394693632,1763904237712,-500.0,0.00016654,2]
[394693633,1763904237721,-514.57777682,0.00016654,2]
[394693634,1763904237729,-4728.27433068,0.00016655,2]
[394693635,1763904237765,-4769.28973851,0.00016655,2]
[394693636,1763904237788,-166.66,0.00016655,2]
[394693637,1763904237806,-128.11052298,0.00016655,2]
[394693638,1763904237836,-9701.23251174,0.00016655,2]
[394693639,1763904238527,-10000.01,0.00016655,2]
[394693641,1763904244626,-544.55089799,0.00016558,2]
[394693642,1763904244678,-8910.90820402,0.00016655,2]
[394693643,1763904244743,-10000.01,0.00016655,2]
[394693644,1763904244914,-10000.01,0.00016655,2]
[394693645,1763904245287,-10000.01,0.00016655,2]
[394693646,1763904245346,-10000.01,0.00016655,2]
[394693647,1763904245479,-10000.01,0.00016655,2]
[394693648,1763904245600,-10000.01,0.00016655,2]
[394693732,1763904631523,-150.0,0.00015189,2]
[394693733,1763904631533,-170.12,0.0001585,2]
[394693734,1763904631542,-166.67,0.00016437,2]
[394693735,1763904631552,-1200.0,0.00016454,2]
[394693736,1763904631562,-300.0,0.00016454,2]
[394693737,1763904631571,-300.0,0.00016454,2]
[394693738,1763904631581,-476.48203575,0.00016455,2]
[394693739,1763904631590,-5653.47745874,0.00016455,2]
[394693740,1763904631605,-8254.55802881,0.00016455,2]
[394693741,1763904631618,-875.02121168,0.00016455,2]
[394693742,1763904631628,-151.0,0.00016552,2]
[394693743,1763904631637,-500.0,0.00016554,2]
[394693744,1763904631647,-500.0,0.00016554,2]
[394693745,1763904631656,-500.0,0.00016554,2]
[394693746,1763904631665,-500.0,0.00016554,2]
[394693747,1763904631817,-500.0,0.00016554,2]
[394693748,1763904631826,-495.97643827,0.00016554,2]
[394693749,1763904631836,-8158.56636593,0.00016555,2]
[394693750,1763904631857,-2238.41975202,0.00016555,2]
[394693751,1763904631887,-2173.02151897,0.00016555,2]
[394693779,1763904637558,-27478.57779052,0.00016555,2]
[394693780,1763904637570,-1923.56255802,0.00016555,2]
[394693781,1763904637677,-527089.29951454,0.00016555,2]
[394693782,1763904637686,-205.7823,0.00016555,2]
[394693783,1763904637696,-500.0,0.00016573,2]
[394693784,1763904637705,-500.57212574,0.00016573,2]
[394693785,1763904637715,-500.0,0.00016573,2]
[394693786,1763904637724,-500.0,0.00016573,2]
[394693787,1763904637734,-500.09966987,0.00016573,2]
[394693788,1763904637743,-500.0,0.00016573,2]
[394693789,1763904637752,-500.81923454,0.00016573,2]
[394693790,1763904637761,-500.68360586,0.00016573,2]
[394693791,1763904637771,-275.15105889,0.00016573,2]
[394693792,1763904637780,-500.0,0.00016573,2]
[394693793,1763904637789,-500.0,0.00016573,2]
[394693794,1763904637798,-502.43033754,0.00016573,2]
[394693795,1763904637808,-500.0,0.00016573,2]
[394693796,1763904637817,-501.18923023,0.00016573,2]
[394693797,1763904637826,-500.0,0.00016573,2]
[394693798,1763904637835,-500.0,0.00016573,2]
[394693799,1763904637845,-601.2617969,0.00016573,2]
[394693800,1763904637854,-500.0,0.00016573,2]
[394693801,1763904637863,-500.0,0.00016573,2]
[394693802,1763904637873,-500.0,0.00016573,2]
[394693803,1763904637883,-200.7144154,0.00016573,2]
[394693804,1763904637893,-272.82,0.00016623,2]
[394693805,1763904637903,-184.7033173,0.00016636,2]
[394693806,1763904637912,-500.0,0.00016636,2]
[394693807,1763904637922,-268.3676484,0.00016636,2]
[394693808,1763904637931,-500.0,0.00016636,2]
[394693809,1763904637942,-9249.14285897,0.00016637,2]
[394693810,1763904637952,-234.62920184,0.00016637,2]
[394693811,1763904637964,-500.0,0.00016655,2]
[394693812,1763904637974,-500.0,0.00016655,2]
[394693813,1763904637983,-500.0,0.00016655,2]
[394693814,1763904637992,-500.0,0.00016655,2]
[394693815,1763904638003,-500.0,0.00016655,2]
[394693816,1763904638011,-500.0,0.00016655,2]
[394693817,1763904638021,-500.0,0.00016655,2]
[394693818,1763904638030,-500.0,0.00016655,2]
[394693819,1763904638040,-500.0,0.00016655,2]
[394693820,1763904638049,-500.0,0.00016655,2]
[394693821,1763904638062,-500.0,0.00016655,2]
[394693822,1763904638071,-500.0,0.00016655,2]
[394693823,1763904638081,-500.0,0.00016655,2]
[394693824,1763904638092,-500.0,0.00016655,2]
[394693825,1763904638103,-500.0,0.00016655,2]
[394693826,1763904638113,-500.0,0.00016655,2]
[394693827,1763904638122,-500.0,0.00016655,2]
[394693828,1763904638131,-500.0,0.00016655,2]
[394693829,1763904638141,-500.0,0.00016655,2]
[394693830,1763904638151,-500.0,0.00016655,2]
[394693831,1763904638160,-500.0,0.00016655,2]
[394693832,1763904638169,-500.0,0.00016655,2]
[394693833,1763904638178,-500.0,0.00016655,2]
[394693834,1763904638187,-500.0,0.00016655,2]
[394693835,1763904638197,-500.0,0.00016655,2]
[394693836,1763904638206,-500.0,0.00016655,2]
[394693837,1763904638215,-500.0,0.00016655,2]
[394693838,1763904638225,-500.0,0.00016655,2]
[394693839,1763904638234,-500.0,0.00016655,2]
[394693840,1763904638243,-167.84,0.00016658,2]
[394693841,1763904638253,-168.0,0.00016695,2]
[394693842,1763904638262,-195.0,0.00016708,2]
[394693843,1763904638271,-195.0,0.00016708,2]
[394693844,1763904638281,-250.0,0.00016708,2]
[394693845,1763904638290,-4500.0,0.00016727,2]
[394693846,1763904638304,-500.0,0.00016727,2]
[394693847,1763904638313,-500.0,0.00016727,2]
[394693848,1763904638323,-574.12855637,0.00016727,2]
[394693849,1763904638333,-620.0,0.00016727,2]
[394693850,1763904638342,-500.0,0.00016727,2]
[394693851,1763904638351,-1557.90286551,0.00016727,2]
[394693852,1763904638360,-500.0,0.00016727,2]
[394693853,1763904638370,-500.0,0.00016727,2]
[394693854,1763904638379,-500.0,0.00016727,2]
[394693855,1763904638388,-500.0,0.00016727,2]
[394693856,1763904638398,-500.0,0.00016727,2]
[394693857,1763904638407,-500.0,0.00016727,2]
[394693858,1763904638417,-500.0,0.00016727,2]
[394693859,1763904638426,-500.0,0.00016727,2]
[394693860,1763904638435,-500.0,0.00016727,2]
[394693861,1763904638444,-500.0,0.00016727,2]
[394693862,1763904638454,-518.16757523,0.00016727,2]
[394693863,1763904638464,-711.97090635,0.00016727,2]
[394693864,1763904638474,-416.0,0.00016727,2]
[394693865,1763904638483,-190.13197896,0.00016734,2]
[394693866,1763904638494,-14090.7376359,0.00016737,2]
[394693867,1763904638503,-573619.1487552,0.00016737,2]
[394693868,1763904638513,-66759.6617256,0.00016737,2]
[394693869,1763904638523,-500.0,0.00016737,2]
[394693870,1763904638532,-468.0,0.00016761,2]
[394693871,1763904638542,-1732.55050065,0.00016764,2]
[394693872,1763904638552,-500.0,0.00016773,2]
[394693873,1763904638562,-500.27274468,0.00016773,2]
[394693874,1763904638572,-500.57621506,0.00016773,2]
[394693875,1763904638582,-501.64508704,0.00016773,2]
[394693876,1763904638592,-326.52315615,0.00016773,2]
[394693877,1763904638602,-500.0,0.00016773,2]
[394693878,1763904638612,-500.16370681,0.00016773,2]
[394693879,1763904638624,-572.71435453,0.00016773,2]
[394693880,1763904638634,-500.0,0.00016773,2]
[394693881,1763904638643,-500.0,0.00016773,2]
[394693882,1763904638653,-500.0,0.00016773,2]
[394693883,1763904638663,-500.0,0.00016773,2]
[394693884,1763904638673,-504.03658671,0.00016773,2]
[394693885,1763904638682,-500.0,0.00016773,2]
[394693886,1763904638692,-500.0,0.00016773,2]
[394693887,1763904638701,-500.0,0.00016773,2]
[394693888,1763904638711,-206.52190789,0.00016773,2]
[394693889,1763904638721,-327.84480847,0.00016773,2]
[394693890,1763904638730,-500.0,0.00016773,2]
[394693891,1763904638739,-500.63287134,0.00016773,2]
[394693892,1763904638750,-500.0,0.00016773,2]
[394693893,1763904638759,-214.83788734,0.00016773,2]
[394693894,1763904638768,-520.88092567,0.00016773,2]
[394693895,1763904638777,-166.21595802,0.00016773,2]
[394693896,1763904638786,-500.32512745,0.00016773,2]
[394693897,1763904638795,-537.54891861,0.00016773,2]
[394693898,1763904638805,-500.0,0.00016773,2]
[394693899,1763904638814,-402.0,0.00016794,2]
[394693900,1763904638823,-168.0,0.00016805,2]
[394693901,1763904638833,-265.22835678,0.00016898,2]
[394693902,1763904638842,-1696.0,0.000169,2]
[394693903,1763904638853,-160.0,0.000169,2]
[394693904,1763904638863,-186.95377258,0.000169,2]
[394693905,1763904638874,-765.47879035,0.000169,2]
[394693906,1763904638884,-4792.06963947,0.000169,2]
[394693907,1763904638894,-168.0,0.00016912,2]
[394693908,1763904638904,-1129.7655,0.00016932,2]
[394693909,1763904638913,-511.34217429,0.00016954,2]
[394693910,1763904638923,-500.0,0.00016973,2]
[394693911,1763904638933,-500.38297353,0.00016973,2]
[394693912,1763904638943,-500.0,0.00016973,2]
[394693913,1763904638953,-500.0,0.00016973,2]
[394693914,1763904638964,-500.0,0.00016973,2]
[394693915,1763904638974,-528.78748633,0.00016973,2]
[394693916,1763904638985,-500.0,0.00016973,2]
[394693917,1763904639114,-500.48889025,0.00016973,2]
[394693918,1763904639125,-176.00464324,0.00016973,2]
[394693919,1763904639135,-163.13182169,0.00016973,2]
[394693920,1763904639147,-500.0,0.00016973,2]
[394693921,1763904639157,-493.00989468,0.00016973,2]
[394693922,1763904639167,-1000.0,0.00016986,2]
[394693923,1763904639177,-1000.0,0.00016986,2]
[394693924,1763904639186,-1000.0,0.00016986,2]
[394693925,1763904639196,-1000.0,0.00016986,2]
[394693926,1763904639205,-1000.0,0.00016986,2]
[394693927,1763904639215,-1000.0,0.00016986,2]
[394693928,1763904639224,-1000.0,0.00016986,2]
[394693929,1763904639233,-557.716,0.00016986,2]
[394693930,1763904639242,-223.220354,0.0001699,2]
[394693931,1763904639252,-151.0,0.0001699,2]
[394693932,1763904639261,-185.127782,0.0001699,2]
[394693933,1763904639271,-185.127782,0.0001699,2]
[394693934,1763904639280,-185.127782,0.0001699,2]
[394693935,1763904639290,-151.0,0.0001699,2]
[394693936,1763904639299,-151.0,0.0001699,2]
[394693937,1763904639307,-151.0,0.0001699,2]
[394693938,1763904639317,-151.0,0.0001699,2]
[394693939,1763904639326,-151.0,0.0001699,2]
[394693940,1763904639336,-151.0,0.0001699,2]
[394693941,1763904639345,-302.842987,0.0001699,2]
[394693942,1763904639354,-181.607179,0.0001699,2]
[394693943,1763904639364,-302.842987,0.0001699,2]
[394693944,1763904639374,-302.842987,0.0001699,2]
[394693945,1763904639383,-302.842987,0.0001699,2]
[394693946,1763904639393,-344.848355,0.0001699,2]
[394693947,1763904639402,-344.848355,0.0001699,2]
[394693948,1763904639412,-344.848355,0.0001699,2]
[394693949,1763904639421,-344.848355,0.0001699,2]
[394693950,1763904639430,-151.0,0.0001699,2]
[394693951,1763904639440,-151.0,0.0001699,2]
[394693952,1763904639449,-151.0,0.0001699,2]
[394693953,1763904639458,-151.0,0.0001699,2]
[394693954,1763904639468,-164.090041,0.0001699,2]
[394693955,1763904639477,-319.110916,0.0001699,2]
[394693956,1763904639487,-151.0,0.0001699,2]
[394693957,1763904639496,-319.110916,0.0001699,2]
[394693958,1763904639505,-319.110916,0.0001699,2]
[394693959,1763904639515,-319.110916,0.0001699,2]
[394693960,1763904639524,-151.0,0.0001699,2]
[394693961,1763904639534,-151.0,0.0001699,2]
[394693962,1763904639545,-151.0,0.0001699,2]
[394693963,1763904639556,-151.0,0.0001699,2]
[394693964,1763904639565,-151.0,0.0001699,2]
[394693965,1763904639575,-151.0,0.0001699,2]
[394693966,1763904639584,-151.0,0.0001699,2]
[394693967,1763904639594,-151.0,0.0001699,2]
[394693968,1763904639604,-421.451363,0.0001699,2]
[394693969,1763904639613,-421.451363,0.0001699,2]
[394693970,1763904639623,-421.451363,0.0001699,2]
[394693971,1763904639632,-151.0,0.0001699,2]
[394693972,1763904639641,-421.451363,0.0001699,2]
[394693973,1763904639651,-159.148597,0.0001699,2]
[394693974,1763904639659,-151.0,0.0001699,2]
[394693975,1763904639669,-153.359812,0.0001699,2]
[394693976,1763904639678,-151.0,0.0001699,2]
[394693977,1763904639687,-151.0,0.0001699,2]
[394693978,1763904639698,-151.0,0.0001699,2]
[394693979,1763904639708,-151.0,0.0001699,2]
[394693980,1763904639719,-151.0,0.0001699,2]
[394693981,1763904639731,-159.313194,0.0001699,2]
[394693982,1763904639741,-151.0,0.0001699,2]
[394693983,1763904639752,-151.0,0.0001699,2]
[394693984,1763904639765,-151.0,0.0001699,2]
[394693985,1763904639774,-151.0,0.0001699,2]
[394693986,1763904639785,-151.0,0.0001699,2]
[394693987,1763904639796,-151.0,0.0001699,2]
[394693988,1763904639806,-151.0,0.0001699,2]
[394693989,1763904639816,-151.0,0.0001699,2]
[394693990,1763904639826,-151.0,0.0001699,2]
[394693991,1763904639835,-151.0,0.0001699,2]
[394693992,1763904639845,-151.0,0.0001699,2]
[394693993,1763904639854,-151.0,0.0001699,2]
[394693994,1763904639863,-151.0,0.0001699,2]
[394693995,1763904639872,-151.0,0.0001699,2]
[394693996,1763904639882,-151.0,0.0001699,2]
[394693997,1763904639891,-151.0,0.0001699,2]
[394693998,1763904639900,-151.0,0.0001699,2]
[394693999,1763904639910,-151.0,0.0001699,2]
[394694000,1763904639921,-151.0,0.0001699,2]
[394694001,1763904639931,-151.0,0.0001699,2]
[394694002,1763904639940,-151.0,0.0001699,2]
[394694004,1763904639949,-151.0,0.0001699,2]
[394694005,1763904639958,-151.0,0.0001699,2]
[394694006,1763904639967,-151.0,0.0001699,2]
[394694007,1763904639976,-258.017859,0.0001699,2]
[394694008,1763904639985,-151.0,0.0001699,2]
[394694009,1763904639994,-151.0,0.0001699,2]
[394694010,1763904640003,-258.017859,0.0001699,2]
[394694011,1763904640013,-151.0,0.0001699,2]
[394694012,1763904640025,-258.017859,0.0001699,2]
[394694013,1763904640034,-238.708497,0.0001699,2]
[394694014,1763904640044,-151.0,0.0001699,2]
[394694015,1763904640053,-258.017859,0.0001699,2]
[394694016,1763904640067,-151.0,0.0001699,2]
[394694017,1763904640076,-151.0,0.0001699,2]
[394694018,1763904640086,-151.0,0.0001699,2]
[394694019,1763904640096,-151.0,0.0001699,2]
[394694020,1763904640107,-151.0,0.0001699,2]
[394694021,1763904640117,-910.64023,0.0001699,2]
[394694022,1763904640127,-412.703608,0.0001699,2]
[394694023,1763904640139,-412.703608,0.0001699,2]
[394694025,1763904640148,-910.64023,0.0001699,2]
[394694027,1763904640158,-412.703608,0.0001699,2]
[394694029,1763904640168,-910.64023,0.0001699,2]
[394694031,1763904640178,-412.703608,0.0001699,2]
[394694033,1763904640187,-910.64023,0.0001699,2]
[394694035,1763904640196,-151.0,0.0001699,2]
[394694037,1763904640206,-1715.795233,0.0001699,2]
[394694038,1763904640215,-151.0,0.0001699,2]
[394694040,1763904640226,-151.0,0.0001699,2]
[394694042,1763904640235,-151.0,0.0001699,2]
[394694044,1763904640244,-151.0,0.0001699,2]
[394694045,1763904640254,-151.0,0.0001699,2]
[394694046,1763904640263,-151.0,0.0001699,2]
[394694047,1763904640273,-151.0,0.0001699,2]
[394694048,1763904640282,-151.0,0.0001699,2]
[394694049,1763904640291,-151.0,0.0001699,2]
[394694050,1763904640301,-151.0,0.0001699,2]
[394694051,1763904640310,-470.591395,0.0001699,2]
[394694052,1763904640319,-151.0,0.0001699,2]
[394694053,1763904640329,-199.629096,0.0001699,2]
[394694054,1763904640338,-151.0,0.0001699,2]
[394694055,1763904640347,-470.591395,0.0001699,2]
[394694056,1763904640356,-199.629096,0.0001699,2]
[394694057,1763904640365,-151.0,0.0001699,2]
[394694058,1763904640374,-470.591395,0.0001699,2]
[394694059,1763904640384,-151.0,0.0001699,2]
[394694060,1763904640393,-151.0,0.0001699,2]
[394694061,1763904640402,-152.272833,0.0001699,2]
[394694062,1763904640411,-199.629096,0.0001699,2]
[394694063,1763904640420,-470.591395,0.0001699,2]
[394694064,1763904640429,-199.629096,0.0001699,2]
[394694065,1763904640439,-151.0,0.0001699,2]
[394694066,1763904640448,-151.0,0.0001699,2]
[394694067,1763904640458,-151.0,0.0001699,2]
[394694068,1763904640467,-155.893276,0.0001699,2]
[394694069,1763904640476,-155.893276,0.0001699,2]
[394694070,1763904640486,-155.893276,0.0001699,2]
[394694071,1763904640495,-155.893276,0.0001699,2]
[394694072,1763904640504,-151.0,0.0001699,2]
[394694073,1763904640513,-153.181117,0.0001699,2]
[394694074,1763904640523,-151.0,0.0001699,2]
[394694075,1763904640532,-151.0,0.0001699,2]
[394694076,1763904640541,-151.0,0.0001699,2]
[394694077,1763904640551,-159.937448,0.0001699,2]
[394694078,1763904640560,-151.0,0.0001699,2]
[394694079,1763904640569,-500.084101,0.0001699,2]
[394694080,1763904640579,-151.0,0.0001699,2]
[394694081,1763904640588,-151.0,0.0001699,2]
[394694082,1763904640597,-500.084101,0.0001699,2]
[394694083,1763904640606,-151.0,0.0001699,2]
[394694084,1763904640616,-153.255144,0.0001699,2]
[394694085,1763904640626,-500.084101,0.0001699,2]
[394694086,1763904640636,-151.0,0.0001699,2]
[394694087,1763904640751,-686.763446,0.0001699,2]
[394694088,1763904640760,-686.763446,0.0001699,2]
[394694089,1763904640769,-500.084101,0.0001699,2]
[394694090,1763904640778,-686.763446,0.0001699,2]
[394694091,1763904640787,-496.12755,0.0001699,2]
[394694092,1763904640796,-686.763446,0.0001699,2]
[394694093,1763904640805,-496.12755,0.0001699,2]
[394694094,1763904640814,-607.343523,0.0001699,2]
[394694095,1763904640823,-679.090972,0.0001699,2]
[394694096,1763904640832,-607.343523,0.0001699,2]
[394694097,1763904640841,-679.090972,0.0001699,2]
[394694098,1763904640850,-496.12755,0.0001699,2]
[394694099,1763904640861,-607.343523,0.0001699,2]
[394694100,1763904640871,-679.090972,0.0001699,2]
[394694101,1763904640880,-496.12755,0.0001699,2]
[394694102,1763904640889,-607.343523,0.0001699,2]
[394694103,1763904640900,-151.0,0.0001699,2]
[394694104,1763904640910,-679.090972,0.0001699,2]
[394694105,1763904640919,-151.0,0.0001699,2]
[394694106,1763904640930,-151.0,0.0001699,2]